[Event "Live Chess"]
[Site "Chess.com"]
[Date "2023.05.21"]
[Round "-"]
[White "Ferrarifan27"]
[Black "CeladonFish"]
[Result "1-0"]
[WhiteElo "2078"]
[BlackElo "1096"]
[TimeControl "300"]
[EndTime "4:40:23 PDT"]
[Termination "Ferrarifan27 won by resignation"]

1. e4 {[%clk 0:04:57.2]} 1... d6 {[%clk 0:04:59.2]} 2. d4 {[%clk 0:04:55.6]}
2... Nf6 {[%clk 0:04:58.6]} 3. Nc3 {[%clk 0:04:51.8]} 3... g6 {[%clk 0:04:57.8]}
4. Nf3 {[%clk 0:04:48.2]} 4... Bg7 {[%clk 0:04:57.2]} 5. Bg5 {[%clk 0:04:44.2]}
5... O-O {[%clk 0:04:56]} 6. Qd2 {[%clk 0:04:39]} 6... Nc6 {[%clk 0:04:50.2]} 7.
h4 {[%clk 0:04:34.8]} 7... Bg4 {[%clk 0:04:44.3]} 8. O-O-O {[%clk 0:04:28.3]}
8... Bxf3 {[%clk 0:04:35.7]} 9. gxf3 {[%clk 0:04:26.7]} 9... e5 {[%clk
0:04:19.8]} 10. dxe5 {[%clk 0:04:18.3]} 10... Nxe5 {[%clk 0:04:16.4]} 11. Qf4
{[%clk 0:04:08.2]} 11... Nh5 {[%clk 0:04:05.1]} 12. Bxd8 {[%clk 0:03:55.9]}
12... Nxf4 {[%clk 0:04:01.5]} 13. Bxc7 {[%clk 0:03:53.7]} 13... Nxf3 {[%clk
0:03:56.7]} 14. Bxd6 {[%clk 0:03:38.5]} 14... Bxc3 {[%clk 0:03:48.6]} 15. bxc3
{[%clk 0:03:30.3]} 15... Ne6 {[%clk 0:03:31.1]} 16. Bg2 {[%clk 0:03:20.2]} 1-0

[Event "Live Chess"]
[Site "Chess.com"]
[Date "2023.05.21"]
[Round "-"]
[White "raminguy"]
[Black "Tilbs_12"]
[Result "1/2-1/2"]
[WhiteElo "1952"]
[BlackElo "1588"]
[TimeControl "300"]
[EndTime "4:40:24 PDT"]
[Termination "Game drawn by repetition"]

1. d4 {[%clk 0:04:59.7]} 1... d5 {[%clk 0:04:55.8]} 2. Nc3 {[%clk 0:04:59.1]}
2... Nf6 {[%clk 0:04:54]} 3. Bf4 {[%clk 0:04:58.7]} 3... a6 {[%clk 0:04:51.6]}
4. e3 {[%clk 0:04:57.4]} 4... Nc6 {[%clk 0:04:46.3]} 5. Nf3 {[%clk 0:04:55.1]}
5... Bg4 {[%clk 0:04:44.6]} 6. Be2 {[%clk 0:04:52.9]} 6... e6 {[%clk 0:04:43.1]}
7. h3 {[%clk 0:04:50.6]} 7... Bh5 {[%clk 0:04:42.1]} 8. a3 {[%clk 0:04:44]} 8...
Bd6 {[%clk 0:04:40.8]} 9. Ne5 {[%clk 0:04:42.5]} 9... Bxe2 {[%clk 0:04:38.5]}
10. Qxe2 {[%clk 0:04:42.4]} 10... O-O {[%clk 0:04:32.3]} 11. f3 {[%clk
0:04:33.6]} 11... Nd7 {[%clk 0:04:26.3]} 12. Nxc6 {[%clk 0:04:27.1]} 12... bxc6
{[%clk 0:04:25.4]} 13. Bxd6 {[%clk 0:04:26.8]} 13... cxd6 {[%clk 0:04:24.6]} 14.
g4 {[%clk 0:04:24.5]} 14... e5 {[%clk 0:04:18.2]} 15. O-O-O {[%clk 0:04:20]}
15... Qb6 {[%clk 0:04:01]} 16. dxe5 {[%clk 0:04:14.9]} 16... Nxe5 {[%clk
0:03:59]} 17. Rdg1 {[%clk 0:04:06.5]} 17... Nc4 {[%clk 0:03:54.6]} 18. Nd1
{[%clk 0:04:02.2]} 18... Rfe8 {[%clk 0:03:38]} 19. e4 {[%clk 0:04:00.6]} 19...
Rab8 {[%clk 0:03:28.5]} 20. c3 {[%clk 0:03:51.1]} 20... Qb3 {[%clk 0:02:54.7]}
21. Qc2 {[%clk 0:03:47.2]} 21... Qxc2+ {[%clk 0:02:36.4]} 22. Kxc2 {[%clk
0:03:47.1]} 22... dxe4 {[%clk 0:02:35.4]} 23. fxe4 {[%clk 0:03:39.6]} 23... Rxe4
{[%clk 0:02:34.2]} 24. Kd3 {[%clk 0:03:30.5]} 24... d5 {[%clk 0:02:32.1]} 25.
Re1 {[%clk 0:03:13.9]} 25... Nxb2+ {[%clk 0:02:09.6]} 26. Nxb2 {[%clk 0:03:12]}
26... Rxb2 {[%clk 0:02:08.4]} 27. Rxe4 {[%clk 0:03:10]} 27... dxe4+ {[%clk
0:02:07.5]} 28. Kxe4 {[%clk 0:03:08.4]} 28... Rb3 {[%clk 0:02:04.6]} 29. Rd1
{[%clk 0:03:06.5]} 29... Kf8 {[%clk 0:02:03.3]} 30. Kd4 {[%clk 0:02:56.9]} 30...
Rxa3 {[%clk 0:02:02.1]} 31. Rb1 {[%clk 0:02:54.9]} 31... Ra5 {[%clk 0:01:56.8]}
32. Rb6 {[%clk 0:02:52.7]} 32... Ke7 {[%clk 0:01:38.8]} 33. Rxc6 {[%clk
0:02:50.7]} 33... Kd7 {[%clk 0:01:36.6]} 34. Rb6 {[%clk 0:02:37.6]} 34... Ra1
{[%clk 0:01:32.6]} 35. Rb7+ {[%clk 0:02:34.2]} 35... Ke6 {[%clk 0:01:31.5]} 36.
c4 {[%clk 0:02:32.1]} 36... a5 {[%clk 0:01:25]} 37. c5 {[%clk 0:02:30.8]} 37...
a4 {[%clk 0:01:24]} 38. Rb6+ {[%clk 0:02:18]} 38... Ke7 {[%clk 0:01:20.3]} 39.
Rb7+ {[%clk 0:02:16.2]} 39... Ke6 {[%clk 0:01:19.3]} 40. Rb6+ {[%clk 0:02:15.5]}
40... Ke7 {[%clk 0:01:18.5]} 41. Rb7+ {[%clk 0:02:14.9]} 41... Ke6 {[%clk
0:01:17.4]} 1/2-1/2

[Event "Live Chess"]
[Site "Chess.com"]
[Date "2023.05.21"]
[Round "-"]
[White "manthanit"]
[Black "Brooms1989"]
[Result "1-0"]
[WhiteElo "1079"]
[BlackElo "1132"]
[TimeControl "300"]
[EndTime "4:40:36 PDT"]
[Termination "manthanit won by checkmate"]

1. e4 {[%clk 0:04:59.6]} 1... e5 {[%clk 0:04:57.9]} 2. Nf3 {[%clk 0:04:59]} 2...
Nc6 {[%clk 0:04:55.2]} 3. Bc4 {[%clk 0:04:57.4]} 3... Nf6 {[%clk 0:04:53.8]} 4.
Ng5 {[%clk 0:04:56.5]} 4... d5 {[%clk 0:04:53.1]} 5. exd5 {[%clk 0:04:55.3]}
5... Na5 {[%clk 0:04:52.7]} 6. d3 {[%clk 0:04:46.2]} 6... Nxc4 {[%clk
0:04:47.9]} 7. dxc4 {[%clk 0:04:45.3]} 7... h6 {[%clk 0:04:43.7]} 8. Nf3 {[%clk
0:04:42.3]} 8... Bc5 {[%clk 0:04:39.9]} 9. h3 {[%clk 0:04:41]} 9... O-O {[%clk
0:04:36.9]} 10. O-O {[%clk 0:04:39.8]} 10... Bf5 {[%clk 0:04:27.2]} 11. Nc3
{[%clk 0:04:36.6]} 11... Re8 {[%clk 0:04:21.8]} 12. Re1 {[%clk 0:04:35.3]} 12...
Bd6 {[%clk 0:04:17.8]} 13. a4 {[%clk 0:04:28.7]} 13... e4 {[%clk 0:04:15.6]} 14.
Nd2 {[%clk 0:04:22.3]} 14... Bc5 {[%clk 0:04:04]} 15. Kh1 {[%clk 0:04:18.2]}
15... e3 {[%clk 0:04:00.8]} 16. fxe3 {[%clk 0:04:17]} 16... Rxe3 {[%clk
0:03:57.4]} 17. Rxe3 {[%clk 0:04:15.6]} 17... Bxe3 {[%clk 0:03:57.3]} 18. Qf3
{[%clk 0:03:57.6]} 18... Bxd2 {[%clk 0:03:48.4]} 19. Bxd2 {[%clk 0:03:56.5]}
19... Bxc2 {[%clk 0:03:44.7]} 20. Qg3 {[%clk 0:03:44.2]} 20... Qd6 {[%clk
0:03:31.8]} 21. Bf4 {[%clk 0:03:33.6]} 21... Nh5 {[%clk 0:03:18.6]} 22. Bxd6
{[%clk 0:03:30.5]} 22... Nxg3+ {[%clk 0:03:17.3]} 23. Bxg3 {[%clk 0:03:29.3]}
23... Re8 {[%clk 0:03:13.4]} 24. Re1 {[%clk 0:03:26.8]} 24... Rxe1+ {[%clk
0:03:11.1]} 25. Bxe1 {[%clk 0:03:25.6]} 25... Bd3 {[%clk 0:03:08.7]} 26. c5
{[%clk 0:03:24]} 26... Kf8 {[%clk 0:03:06.6]} 27. d6 {[%clk 0:03:23.3]} 27...
cxd6 {[%clk 0:03:05.3]} 28. cxd6 {[%clk 0:03:22.7]} 28... Ke8 {[%clk 0:03:04.5]}
29. a5 {[%clk 0:03:20]} 29... Kd7 {[%clk 0:03:03.7]} 30. Bg3 {[%clk 0:03:16.9]}
30... g5 {[%clk 0:03:01.5]} 31. Bh2 {[%clk 0:03:14.3]} 31... h5 {[%clk
0:03:00.3]} 32. Kg1 {[%clk 0:03:13.7]} 32... f5 {[%clk 0:02:58.6]} 33. Kf2
{[%clk 0:03:13]} 33... g4 {[%clk 0:02:56.9]} 34. hxg4 {[%clk 0:03:11.5]} 34...
fxg4 {[%clk 0:02:56.8]} 35. g3 {[%clk 0:03:09.8]} 35... Kxd6 {[%clk 0:02:53.9]}
36. Ke3 {[%clk 0:03:07.7]} 36... Ba6 {[%clk 0:02:50.7]} 37. Kf4 {[%clk
0:03:06.4]} 37... Bc4 {[%clk 0:02:45.9]} 38. Ne4+ {[%clk 0:02:59.8]} 38... Kc6
{[%clk 0:02:41.2]} 39. Kg5 {[%clk 0:02:57.7]} 39... Bd5 {[%clk 0:02:29.5]} 40.
Nf6 {[%clk 0:02:54.9]} 40... Bf7 {[%clk 0:02:27.4]} 41. Nxh5 {[%clk 0:02:53.6]}
41... Bxh5 {[%clk 0:02:26.5]} 42. Kxh5 {[%clk 0:02:52.9]} 42... Kb5 {[%clk
0:02:25.2]} 43. Kxg4 {[%clk 0:02:52.5]} 43... Kxa5 {[%clk 0:02:24.6]} 44. Kf4
{[%clk 0:02:52.2]} 44... b5 {[%clk 0:02:24.1]} 45. g4 {[%clk 0:02:51.9]} 45...
b4 {[%clk 0:02:23.7]} 46. g5 {[%clk 0:02:51.5]} 46... Kb6 {[%clk 0:02:21.7]} 47.
g6 {[%clk 0:02:50.9]} 47... a5 {[%clk 0:02:21.3]} 48. Kf5 {[%clk 0:02:50.3]}
48... a4 {[%clk 0:02:20.9]} 49. g7 {[%clk 0:02:49.9]} 49... a3 {[%clk
0:02:20.4]} 50. g8=Q {[%clk 0:02:49.1]} 50... axb2 {[%clk 0:02:18]} 51. Qb3
{[%clk 0:02:48]} 51... Kb5 {[%clk 0:02:16.1]} 52. Qxb2 {[%clk 0:02:47.2]} 52...
Kc4 {[%clk 0:02:15.6]} 53. Bd6 {[%clk 0:02:45.5]} 53... b3 {[%clk 0:02:11.5]}
54. Ke4 {[%clk 0:02:42.4]} 54... Kb5 {[%clk 0:02:09.4]} 55. Kd3 {[%clk
0:02:41.3]} 55... Kc6 {[%clk 0:02:07.2]} 56. Ba3 {[%clk 0:02:39.7]} 56... Kb5
{[%clk 0:02:06.2]} 57. Qxb3+ {[%clk 0:02:38.9]} 57... Ka6 {[%clk 0:02:04.5]} 58.
Kc4 {[%clk 0:02:36]} 58... Ka7 {[%clk 0:02:03.7]} 59. Kc5 {[%clk 0:02:35.2]}
59... Ka8 {[%clk 0:02:02.9]} 60. Kc6 {[%clk 0:02:34.6]} 60... Ka7 {[%clk
0:02:02.6]} 61. Qb6+ {[%clk 0:02:33.8]} 61... Ka8 {[%clk 0:02:01.3]} 62. Qb7#
{[%clk 0:02:32.4]} 1-0

[Event "Live Chess"]
[Site "Chess.com"]
[Date "2023.05.21"]
[Round "-"]
[White "GMHarry-youtube"]
[Black "Nakula1000"]
[Result "0-1"]
[WhiteElo "2026"]
[BlackElo "760"]
[TimeControl "300"]
[EndTime "4:40:48 PDT"]
[Termination "Nakula1000 won by resignation"]

1. e4 {[%clk 0:04:59.2]} 1... e5 {[%clk 0:04:58]} 2. Nf3 {[%clk 0:04:58.5]} 2...
Nc6 {[%clk 0:04:56.3]} 3. Bc4 {[%clk 0:04:58]} 3... Nf6 {[%clk 0:04:52.6]} 4. d3
{[%clk 0:04:56.8]} 4... h6 {[%clk 0:04:49.3]} 5. O-O {[%clk 0:04:54.9]} 5... g5
{[%clk 0:04:45.8]} 6. c3 {[%clk 0:04:54]} 6... g4 {[%clk 0:04:32.8]} 7. Nh4
{[%clk 0:04:50.8]} 7... d5 {[%clk 0:04:31.2]} 8. exd5 {[%clk 0:04:46.3]} 8...
Nxd5 {[%clk 0:04:29.5]} 9. g3 {[%clk 0:04:37.7]} 9... a6 {[%clk 0:04:27.1]} 10.
Qb3 {[%clk 0:04:35.4]} 10... Be6 {[%clk 0:04:24.5]} 11. Re1 {[%clk 0:04:20.8]}
11... b5 {[%clk 0:04:22.5]} 12. Bxd5 {[%clk 0:04:03.7]} 12... Qxd5 {[%clk
0:04:20]} 13. c4 {[%clk 0:04:03.3]} 13... bxc4 {[%clk 0:04:18.3]} 14. dxc4
{[%clk 0:04:03.2]} 14... Qxc4 {[%clk 0:04:15.1]} 15. Qxc4 {[%clk 0:04:01.7]}
15... Bxc4 {[%clk 0:04:09.3]} 16. Nd2 {[%clk 0:04:00.4]} 16... Be6 {[%clk
0:04:06]} 17. b3 {[%clk 0:03:54.3]} 17... O-O-O {[%clk 0:04:03.8]} 18. Ne4
{[%clk 0:03:50.2]} 18... Bb4 {[%clk 0:04:01.3]} 19. Re2 {[%clk 0:03:45.1]} 19...
Rd1+ {[%clk 0:03:57.7]} 20. Kg2 {[%clk 0:03:42.8]} 20... Nd4 {[%clk 0:03:53.5]}
21. Rb2 {[%clk 0:03:28.8]} 21... Bd5 {[%clk 0:03:51.3]} 0-1

[Event "Live Chess"]
[Site "Chess.com"]
[Date "2023.05.21"]
[Round "-"]
[White "GEMdzq"]
[Black "JoeyCage"]
[Result "1-0"]
[WhiteElo "2287"]
[BlackElo "2284"]
[TimeControl "300"]
[EndTime "4:40:50 PDT"]
[Termination "GEMdzq won by checkmate"]

1. e4 {[%clk 0:04:58.6]} 1... c5 {[%clk 0:04:58]} 2. d4 {[%clk 0:04:57.6]} 2...
cxd4 {[%clk 0:04:53]} 3. c3 {[%clk 0:04:56.6]} 3... dxc3 {[%clk 0:04:51.4]} 4.
Nxc3 {[%clk 0:04:56.5]} 4... Nc6 {[%clk 0:04:50.5]} 5. Bc4 {[%clk 0:04:56.1]}
5... e6 {[%clk 0:04:49.5]} 6. Nf3 {[%clk 0:04:55.7]} 6... a6 {[%clk 0:04:49]} 7.
O-O {[%clk 0:04:55]} 7... Qc7 {[%clk 0:04:47.2]} 8. Qe2 {[%clk 0:04:53.4]} 8...
Be7 {[%clk 0:04:43.6]} 9. Bg5 {[%clk 0:04:32.2]} 9... d6 {[%clk 0:04:33.4]} 10.
Rac1 {[%clk 0:04:27.5]} 10... Nf6 {[%clk 0:04:30]} 11. Bb3 {[%clk 0:04:17.7]}
11... Bd7 {[%clk 0:04:21.1]} 12. Nd5 {[%clk 0:04:09.6]} 12... Qd8 {[%clk
0:04:06.7]} 13. Nxe7 {[%clk 0:04:03.5]} 13... Qxe7 {[%clk 0:04:04.9]} 14. e5
{[%clk 0:03:45.3]} 14... Nxe5 {[%clk 0:03:59.1]} 15. Nxe5 {[%clk 0:03:45.2]}
15... dxe5 {[%clk 0:03:57.9]} 16. Qxe5 {[%clk 0:03:35.6]} 16... Bc6 {[%clk
0:03:53.9]} 17. f4 {[%clk 0:03:25.4]} 17... h6 {[%clk 0:03:44.6]} 18. Bh4 {[%clk
0:03:24.1]} 18... Rd8 {[%clk 0:03:38.7]} 19. f5 {[%clk 0:03:19.6]} 19... exf5
{[%clk 0:03:21]} 20. Bxf6 {[%clk 0:03:15.5]} 20... gxf6 {[%clk 0:03:17.6]} 21.
Qxf5 {[%clk 0:03:14.6]} 21... O-O {[%clk 0:03:00.9]} 22. Qg6+ {[%clk 0:03:09.7]}
22... Kh8 {[%clk 0:02:57]} 23. Qxh6+ {[%clk 0:03:09]} 23... Kg8 {[%clk 0:02:56]}
24. Rc3 {[%clk 0:03:02.8]} 24... Qe5 {[%clk 0:02:28.2]} 25. Qg6+ {[%clk
0:02:56.8]} 25... Kh8 {[%clk 0:00:37.7]} 26. Rh3+ {[%clk 0:02:56.7]} 26... Qh5
{[%clk 0:00:00.2]} 27. Rxh5# {[%clk 0:02:56.6]} 1-0

[Event "Live Chess"]
[Site "Chess.com"]
[Date "2023.05.21"]
[Round "-"]
[White "LL220284LL"]
[Black "EdenHazard8"]
[Result "1-0"]
[WhiteElo "2335"]
[BlackElo "1933"]
[TimeControl "300"]
[EndTime "4:41:00 PDT"]
[Termination "LL220284LL won by resignation"]

1. e3 {[%clk 0:04:58.3]} 1... c5 {[%clk 0:04:59]} 2. b3 {[%clk 0:04:56.3]} 2...
Nf6 {[%clk 0:04:57.6]} 3. Bb2 {[%clk 0:04:55.2]} 3... e6 {[%clk 0:04:57.5]} 4.
Nf3 {[%clk 0:04:54.2]} 4... d5 {[%clk 0:04:57]} 5. d4 {[%clk 0:04:53.8]} 5...
Nc6 {[%clk 0:04:56.6]} 6. Nbd2 {[%clk 0:04:52]} 6... cxd4 {[%clk 0:04:55.5]} 7.
Nxd4 {[%clk 0:04:50.7]} 7... Bd6 {[%clk 0:04:55.1]} 8. Bd3 {[%clk 0:04:49.1]}
8... Ne5 {[%clk 0:04:53.2]} 9. Be2 {[%clk 0:04:47.7]} 9... O-O {[%clk
0:04:51.6]} 10. O-O {[%clk 0:04:46.8]} 10... a6 {[%clk 0:04:48]} 11. c4 {[%clk
0:04:45.5]} 11... dxc4 {[%clk 0:04:45]} 12. Nxc4 {[%clk 0:04:45.4]} 12... Nxc4
{[%clk 0:04:43.4]} 13. Bxc4 {[%clk 0:04:45.3]} 13... b5 {[%clk 0:04:41.4]} 14.
Be2 {[%clk 0:04:38.3]} 14... Bb7 {[%clk 0:04:38.9]} 15. Bf3 {[%clk 0:04:37.9]}
15... Bxf3 {[%clk 0:04:36.5]} 16. Qxf3 {[%clk 0:04:37.8]} 16... Nd5 {[%clk
0:04:31.5]} 17. Rfd1 {[%clk 0:04:35]} 17... Qg5 {[%clk 0:04:23.1]} 18. e4 {[%clk
0:04:27.8]} 18... Nf4 {[%clk 0:04:18]} 19. Nc6 {[%clk 0:04:16.2]} 19... Bc5
{[%clk 0:04:11.1]} 20. Be5 {[%clk 0:04:06.9]} 20... Ng6 {[%clk 0:04:01.2]} 21.
Bg3 {[%clk 0:04:04.1]} 21... Rac8 {[%clk 0:03:58.7]} 22. e5 {[%clk 0:03:49.9]}
22... h5 {[%clk 0:03:42.8]} 23. Rac1 {[%clk 0:03:46.8]} 23... Bb6 {[%clk
0:03:38]} 24. h3 {[%clk 0:03:40.8]} 24... h4 {[%clk 0:03:36.1]} 25. Bh2 {[%clk
0:03:39.9]} 25... Ne7 {[%clk 0:03:26.9]} 26. Nxe7+ {[%clk 0:03:35.2]} 26... Qxe7
{[%clk 0:03:26.8]} 27. Bf4 {[%clk 0:03:33.6]} 27... Rxc1 {[%clk 0:03:24.8]} 28.
Rxc1 {[%clk 0:03:33.5]} 28... Rd8 {[%clk 0:03:22.6]} 29. Qc6 {[%clk 0:03:27.4]}
29... Qa7 {[%clk 0:03:11.3]} 30. Qf3 {[%clk 0:02:52.9]} 30... Qe7 {[%clk
0:03:01.3]} 31. Rd1 {[%clk 0:02:46.3]} 31... Rd2 {[%clk 0:02:56.6]} 32. Rxd2
{[%clk 0:02:44.2]} 1-0

[Event "Live Chess"]
[Site "Chess.com"]
[Date "2023.05.21"]
[Round "-"]
[White "chrisbradgate"]
[Black "JohanKjeldahl"]
[Result "0-1"]
[WhiteElo "865"]
[BlackElo "1880"]
[TimeControl "300"]
[EndTime "4:41:05 PDT"]
[Termination "JohanKjeldahl won by checkmate"]

1. d4 {[%clk 0:04:56.9]} 1... Nf6 {[%clk 0:04:57.5]} 2. Bf4 {[%clk 0:04:55.2]}
2... d6 {[%clk 0:04:53.1]} 3. e3 {[%clk 0:04:54.3]} 3... g6 {[%clk 0:04:51.6]}
4. c3 {[%clk 0:04:53.1]} 4... Bg7 {[%clk 0:04:51.2]} 5. Bb5+ {[%clk 0:04:49.4]}
5... c6 {[%clk 0:04:48.4]} 6. Ba4 {[%clk 0:04:47.6]} 6... O-O {[%clk 0:04:46.4]}
7. Nd2 {[%clk 0:04:45.4]} 7... b5 {[%clk 0:04:45.4]} 8. Bb3 {[%clk 0:04:43.7]}
8... Bb7 {[%clk 0:04:43.4]} 9. Qc2 {[%clk 0:04:39.9]} 9... c5 {[%clk 0:04:37.4]}
10. dxc5 {[%clk 0:04:26.9]} 10... Bxg2 {[%clk 0:04:35]} 11. O-O-O {[%clk
0:04:11.8]} 11... Bxh1 {[%clk 0:04:32.2]} 12. Ne2 {[%clk 0:04:07.3]} 12... Bc6
{[%clk 0:04:27.6]} 13. cxd6 {[%clk 0:03:58.6]} 13... exd6 {[%clk 0:04:26.4]} 14.
Nd4 {[%clk 0:03:52.9]} 14... a6 {[%clk 0:04:15.7]} 15. Nxc6 {[%clk 0:03:51.5]}
15... Nxc6 {[%clk 0:04:14.2]} 16. Ne4 {[%clk 0:03:43.6]} 16... Nxe4 {[%clk
0:04:10.9]} 17. Qxe4 {[%clk 0:03:42.5]} 17... Rc8 {[%clk 0:04:09]} 18. Rxd6
{[%clk 0:03:31.8]} 18... Qb6 {[%clk 0:03:57]} 19. Bd5 {[%clk 0:02:49.6]} 19...
b4 {[%clk 0:03:40.2]} 20. Bxc6 {[%clk 0:02:40.5]} 20... bxc3 {[%clk 0:03:38.6]}
21. bxc3 {[%clk 0:02:11.6]} 21... Bxc3 {[%clk 0:03:34.1]} 22. Bh6 {[%clk
0:01:58.3]} 22... Rfd8 {[%clk 0:03:21]} 23. Rxd8+ {[%clk 0:01:31]} 23... Rxd8
{[%clk 0:03:19.1]} 24. Qe7 {[%clk 0:01:15.9]} 24... Qb2# {[%clk 0:03:15]} 0-1

[Event "Live Chess"]
[Site "Chess.com"]
[Date "2023.05.21"]
[Round "-"]
[White "Chesscoach_Golichenko"]
[Black "diana21strabt"]
[Result "1-0"]
[WhiteElo "2611"]
[BlackElo "1757"]
[TimeControl "300"]
[EndTime "4:41:11 PDT"]
[Termination "Chesscoach_Golichenko won by resignation"]

1. d4 {[%clk 0:04:55.6]} 1... Nf6 {[%clk 0:04:58.4]} 2. c4 {[%clk 0:04:50.4]}
2... g6 {[%clk 0:04:57.1]} 3. Nc3 {[%clk 0:04:46.4]} 3... Bg7 {[%clk 0:04:53.9]}
4. e4 {[%clk 0:04:41.5]} 4... d6 {[%clk 0:04:52.4]} 5. Be2 {[%clk 0:04:35]} 5...
Nbd7 {[%clk 0:04:47.1]} 6. Bg5 {[%clk 0:04:33.4]} 6... O-O {[%clk 0:04:35.4]} 7.
Qd2 {[%clk 0:04:27.8]} 7... e5 {[%clk 0:04:28.6]} 8. d5 {[%clk 0:04:16.6]} 8...
a5 {[%clk 0:04:24.5]} 9. Bd3 {[%clk 0:04:00.4]} 9... Nc5 {[%clk 0:04:17]} 10.
Bc2 {[%clk 0:03:55.1]} 10... Bd7 {[%clk 0:04:09.9]} 11. Nge2 {[%clk 0:03:47]}
11... Qe8 {[%clk 0:03:45.5]} 12. f3 {[%clk 0:03:41.2]} 12... Nh5 {[%clk
0:03:42.5]} 13. g4 {[%clk 0:03:32.5]} 13... Nf4 {[%clk 0:03:38.2]} 14. Nxf4
{[%clk 0:03:29.3]} 14... exf4 {[%clk 0:03:36.4]} 15. Bxf4 {[%clk 0:03:29.2]}
15... Be5 {[%clk 0:03:22.8]} 16. h4 {[%clk 0:03:17.8]} 16... Bxf4 {[%clk
0:03:04.5]} 17. Qxf4 {[%clk 0:03:14.2]} 17... Qe5 {[%clk 0:03:03.4]} 18. Qxe5
{[%clk 0:02:53]} 18... dxe5 {[%clk 0:02:59.6]} 19. h5 {[%clk 0:02:51.3]} 19...
f5 {[%clk 0:02:44.3]} 20. hxg6 {[%clk 0:02:41.1]} 20... hxg6 {[%clk 0:02:43]}
21. gxf5 {[%clk 0:02:40.2]} 21... gxf5 {[%clk 0:02:41.9]} 22. O-O-O {[%clk
0:02:38.7]} 22... f4 {[%clk 0:02:23.2]} 23. Rdg1+ {[%clk 0:02:30.2]} 23... Kf7
{[%clk 0:02:19.8]} 24. Rh7+ {[%clk 0:02:25.4]} 24... Ke8 {[%clk 0:02:14]} 25.
Rg5 {[%clk 0:01:57.2]} 25... Rf7 {[%clk 0:01:44.9]} 26. Rg8+ {[%clk 0:01:37.5]}
26... Rf8 {[%clk 0:01:40.6]} 27. Rxf8+ {[%clk 0:01:36]} 27... Kxf8 {[%clk
0:01:38.2]} 28. Rh8+ {[%clk 0:01:35.9]} 28... Ke7 {[%clk 0:01:37.2]} 29. Rxa8
{[%clk 0:01:35.3]} 1-0

[Event "Live Chess"]
[Site "Chess.com"]
[Date "2023.05.21"]
[Round "-"]
[White "JanMur7"]
[Black "Biranidun"]
[Result "1/2-1/2"]
[WhiteElo "1980"]
[BlackElo "2526"]
[TimeControl "300"]
[EndTime "4:41:12 PDT"]
[Termination "Game drawn by repetition"]

1. e4 {[%clk 0:04:57.5]} 1... c5 {[%clk 0:04:58.7]} 2. d4 {[%clk 0:04:55.2]}
2... cxd4 {[%clk 0:04:57.9]} 3. c3 {[%clk 0:04:54.7]} 3... Nf6 {[%clk
0:04:57.4]} 4. e5 {[%clk 0:04:53.4]} 4... Nd5 {[%clk 0:04:57]} 5. cxd4 {[%clk
0:04:52.9]} 5... d6 {[%clk 0:04:56.3]} 6. Nc3 {[%clk 0:04:52.3]} 6... Nxc3
{[%clk 0:04:54.5]} 7. bxc3 {[%clk 0:04:51.6]} 7... dxe5 {[%clk 0:04:54.4]} 8.
dxe5 {[%clk 0:04:51.4]} 8... Qxd1+ {[%clk 0:04:54]} 9. Kxd1 {[%clk 0:04:51.3]}
9... Nc6 {[%clk 0:04:53]} 10. Nf3 {[%clk 0:04:50.5]} 10... Bg4 {[%clk
0:04:52.2]} 11. Be2 {[%clk 0:04:48.3]} 11... O-O-O+ {[%clk 0:04:51.7]} 12. Kc2
{[%clk 0:04:47.5]} 12... Bxf3 {[%clk 0:04:46.6]} 13. Bxf3 {[%clk 0:04:46.5]}
13... Nxe5 {[%clk 0:04:46.2]} 14. Be2 {[%clk 0:04:43.8]} 14... e6 {[%clk
0:04:45.1]} 15. Bf4 {[%clk 0:04:40.9]} 15... Nc6 {[%clk 0:04:42.2]} 16. Rhd1
{[%clk 0:04:39.7]} 16... Bc5 {[%clk 0:04:40.2]} 17. f3 {[%clk 0:04:36.5]} 17...
Rxd1 {[%clk 0:04:37.9]} 18. Rxd1 {[%clk 0:04:36.4]} 18... Rd8 {[%clk 0:04:37.5]}
19. Rxd8+ {[%clk 0:04:31]} 19... Kxd8 {[%clk 0:04:37.4]} 20. Bd3 {[%clk
0:04:30.3]} 20... h6 {[%clk 0:04:36]} 21. h3 {[%clk 0:04:24.8]} 21... Kd7 {[%clk
0:04:35.2]} 22. Be4 {[%clk 0:04:23.3]} 22... f5 {[%clk 0:04:32.2]} 23. Bd3
{[%clk 0:04:21.8]} 23... a6 {[%clk 0:04:31.2]} 24. a4 {[%clk 0:04:19.8]} 24...
Bd6 {[%clk 0:04:28.4]} 25. Be3 {[%clk 0:04:16.6]} 25... Ne5 {[%clk 0:04:26.9]}
26. Be2 {[%clk 0:04:15.6]} 26... g5 {[%clk 0:04:19.5]} 27. h4 {[%clk 0:04:13.2]}
27... Nf7 {[%clk 0:04:13.5]} 28. hxg5 {[%clk 0:04:08.1]} 28... hxg5 {[%clk
0:04:13.4]} 29. g4 {[%clk 0:04:05.5]} 29... f4 {[%clk 0:04:05.3]} 30. Bd4 {[%clk
0:04:04.4]} 30... Be5 {[%clk 0:04:02]} 31. Bf2 {[%clk 0:03:59]} 31... Kc6 {[%clk
0:03:58.8]} 32. Bd3 {[%clk 0:03:57.6]} 32... Nd6 {[%clk 0:03:58.1]} 33. c4
{[%clk 0:03:49.8]} 33... b6 {[%clk 0:03:53.9]} 34. Kb3 {[%clk 0:03:45.9]} 34...
a5 {[%clk 0:03:50.6]} 35. Bg6 {[%clk 0:03:39.8]} 35... Bf6 {[%clk 0:03:48.6]}
36. Bd3 {[%clk 0:03:36.7]} 36... Be7 {[%clk 0:03:36.3]} 37. Bg6 {[%clk
0:03:30.8]} 37... Bf8 {[%clk 0:03:32.5]} 38. Bd3 {[%clk 0:03:28.3]} 38... Nf7
{[%clk 0:03:31.4]} 39. Be4+ {[%clk 0:03:25.9]} 39... Kc7 {[%clk 0:03:30.8]} 40.
Bd4 {[%clk 0:03:23.4]} 40... e5 {[%clk 0:03:17.5]} 41. Bd5 {[%clk 0:03:14.7]}
41... exd4 {[%clk 0:03:16.3]} 42. Bxf7 {[%clk 0:03:13.2]} 42... Kd6 {[%clk
0:03:14]} 43. Kc2 {[%clk 0:03:08.9]} 43... Kc5 {[%clk 0:03:13.3]} 44. Kd3 {[%clk
0:03:07.8]} 44... Kb4 {[%clk 0:03:08.5]} 45. Be8 {[%clk 0:03:03.5]} 45... Bc5
{[%clk 0:03:06.9]} 46. Bb5 {[%clk 0:02:59.2]} 46... Kb3 {[%clk 0:03:06.1]} 47.
Bc6 {[%clk 0:02:56.9]} 47... Kb2 {[%clk 0:03:05.4]} 48. Bb5 {[%clk 0:02:55.8]}
48... Kc1 {[%clk 0:03:05]} 49. Bc6 {[%clk 0:02:52.7]} 49... Kd1 {[%clk
0:03:04.9]} 50. Bb5 {[%clk 0:02:50.6]} 50... Ke1 {[%clk 0:03:04.8]} 51. Bc6
{[%clk 0:02:49.7]} 51... Kf2 {[%clk 0:03:04.4]} 52. Be4 {[%clk 0:02:48.1]} 52...
Ke1 {[%clk 0:03:03.4]} 53. Bc6 {[%clk 0:02:46.8]} 53... Kd1 {[%clk 0:03:02.8]}
54. Be4 {[%clk 0:02:45.1]} 54... Kc1 {[%clk 0:03:02.3]} 55. Bc6 {[%clk
0:02:44.3]} 55... Kb1 {[%clk 0:03:01.6]} 56. Bb5 {[%clk 0:02:43.7]} 56... Ka2
{[%clk 0:03:01.5]} 57. Bc6 {[%clk 0:02:42.9]} 57... Ka3 {[%clk 0:03:01.4]} 58.
Bb5 {[%clk 0:02:42.1]} 58... Kb4 {[%clk 0:03:01.3]} 59. Bc6 {[%clk 0:02:41.2]}
59... Kb3 {[%clk 0:02:57.1]} 60. Bb5 {[%clk 0:02:37.4]} 60... Ka2 {[%clk
0:02:46.6]} 61. Bc6 {[%clk 0:02:33.3]} 61... Kb1 {[%clk 0:02:42]} 62. Bb5 {[%clk
0:02:31.6]} 62... Kc1 {[%clk 0:02:41.5]} 63. Bc6 {[%clk 0:02:30.6]} 1/2-1/2